Cogmind - Beta 16.1 @@@ ROGUE MODE // 2026.02.15 @ 02:00:24 // Winter2019/RPGLIKE Player: badjay Result: Destroyed by Y-45 Defender with Beam Rifle Performance ------------- Evolutions (1) 500 Regions Visited (3) 600 Robots Destroyed (17) 85 Value Destroyed (491) 491 Prototype IDs (5) 100 Alien Tech Used (0) 0 Bonus (200) 200 TOTAL SCORE: 1976 Bonus ------- Pacifist 200 Cogmind --------- Core Integrity 0/600 Matter 300/300 Energy 280/280 System Corruption 0% Temperature Cool (10) Movement Flying (40) Location -9/Storage Parts ------- > --- POWER (1) -------- Cooled Ion Engine > --- PROPULSION (1) --- Improved Flight Unit > --- UTILITY (1) ------ (None) > --- WEAPON (2) ------- Maul Maul > --- INVENTORY (1) ---- Maul Peak State ------------ > --- POWER ------------ Cooled Ion Engine > --- PROPULSION ------- Improved Flight Unit > --- UTILITY ---------- (None) > --- WEAPON ----------- Maul Maul > --- INVENTORY -------- Maul [Rating: 10] Favorites ----------- Power Cooled Ion Engine Engine Cooled Ion Engine Propulsion Flight Unit Flight Unit Flight Unit Utility None Weapon Maul Impact Weapon Maul Build | -11 -10 -9 -9 ------- Run | Yrd Mat Mat Sto Slots Evolved 1 | . 1 . . Power . | . . . . Propulsion . | . . . . Utility . | . . . . Weapon 1 | . 1 . . Parts Attached 6 | . 3 . 3 Power 2 | . . . 2 Engine 2 | . . . 2 Core . | . . . . Reactor . | . . . . Propulsion 2 | . 1 . 1 Treads . | . . . . Leg . | . . . . Wheel . | . . . . Hover . | . . . . Flight 2 | . 1 . 1 Utility . | . . . . Device . | . . . . Storage . | . . . . Processor . | . . . . Hackware . | . . . . Protection . | . . . . Artifact . | . . . . Weapon 2 | . 2 . . Energy Gun . | . . . . Energy Cannon . | . . . . Ballistic Gun . | . . . . Ballistic Cannon . | . . . . Launcher . | . . . . Special Weapon . | . . . . Impact Weapon 2 | . 2 . . Slashing Weapon . | . . . . Piercing Weapon . | . . . . Special Melee Weapon . | . . . . Unidentified Prototypes 3 | . . . 3 Parts Lost . | . . . . Power . | . . . . Propulsion . | . . . . Utility . | . . . . Weapon . | . . . . Highest Loss Streak . | . . . . To Critical Strikes . | . . . . Average Backups . | . . 1 1 Power . | . . . . Propulsion . | . . . . Utility . | . . . . Weapon . | . . 1 1 Tool/Special . | . . . . Unused Backups 1 | . . . 1 Power . | . . . . Propulsion . | . . . . Utility . | . . . . Weapon 1 | . . . 1 Tool/Special . | . . . . Average Slot Usage (%) 61 | . 34 60 68 Engine 5 | . . . 8 Flight 17 | . 3 20 20 Impact Weapon 38 | . 30 40 40 Peak Build Rating 10 | . 5 5 10 Average Rating 5 | . 3 5 6 On Entrance 2 | . . 5 5 Avg Prop Armor Cover (%) . | . . . . Naked Turns 6 | . 6 . . Heaviest Build 14 | . 6 6 14 Greatest Support 15 | 3 9 9 15 Greatest Overweight (x) . | . . . . Average Overweight (x) . | . . . . Largest Inventory Capacity 1 | . 1 1 1 Average Capacity . | . . 1 1 Most Carried 1 | . 1 1 1 Average Carried . | . . 1 1 Final Capacity 1 | . 1 1 1 Final Carried 1 | . 1 1 1 Class Distribution -------------------- 100% | Gladiator Dominant Class ---------------- Gladiator | -10/Materials Gladiator | -9/Materials Gladiator | -9/Storage Resources | -11 -10 -9 -9 ----------- Run | Yrd Mat Mat Sto Matter Collected 260 | 200 . 25 35 Remotely . | . . . . Salvage Created 529 | . . 25 504 Parts 12 | . . 2 10 Haulers Intercepted 2 | . . . 2 Recyclers Shooed . | . . . . Parts Field Recycled . | . . . . Retrieved Matter . | . . . . Parts Self-Destructed . | . . . . Prevented . | . . . . Parts Restored . | . . . . Kills | -11 -10 -9 -9 ------- Run | Yrd Mat Mat Sto Combat Hostiles Destroyed 13 | . . 1 12 Melee 5 | . . . 5 Classes Destroyed 5 | . . 2 3 Hauler 2 | . . . 2 Watcher 2 | . . 2 . Swarmer 4 | . . . 4 Grunt 3 | . . . 3 Sentry 6 | . . 1 5 Best Kill Streak 10 | . . 2 10 Combat Bots Only 9 | . . 1 9 Max Kills in Single Turn 1 | . . 1 1 Gunslinging . | . . . . Exploded . | . . . . Melee 1 | . . . 1 Uniques/NPCs Destroyed . | . . . . Combat | -11 -10 -9 -9 -------- Run | Yrd Mat Mat Sto Hostile Shots Fired 118 | . . 10 108 Missed 43 | . . 4 39 Hits 75 | . . 6 69 Projectile 75 | . . 6 69 AOE 1 | . . 1 . Damage Taken 899 | . . 161 738 Core 814 | . . 145 669 Absorbed by Shields . | . . . . Redirected to Core 283 | . . 57 226 Core Remaining (%) 100 | 100 100 . . Volleys Fired . | . . . . Largest . | . . . . Hottest . | . . . . Shots Fired . | . . . . Gun . | . . . . Cannon . | . . . . Launcher . | . . . . Special . | . . . . Kinetic . | . . . . Thermal . | . . . . Explosive . | . . . . Electromagnetic . | . . . . Robot Hit Streak . | . . . . Robot Miss Streak . | . . . . Penetration Max . | . . . . Secondary Targets . | . . . . Shots Hit Robots 46 | . . 8 38 Core Hits 4 | . . . 4 Critical Kills 2 | . . . 2 Critical Parts Destroyed 10 | . . 1 9 Critical Strikes 12 | . . 1 11 Smash 12 | . . 1 11 Melee Attacks 55 | . . 8 47 Impact 55 | . . 8 47 Slashing . | . . . . Piercing . | . . . . Sneak Attacks 4 | . . . 4 Combat Hostiles 1 | . . . 1 Follow-up Attacks 9 | . . 1 8 Damage Inflicted 1761 | . . 266 1495 Guns . | . . . . Cannons . | . . . . Explosions . | . . . . Melee 1761 | . . 266 1495 Ramming . | . . . . Kinetic . | . . . . Thermal . | . . . . Explosive . | . . . . Electromagnetic . | . . . . Impact 1761 | . . 266 1495 Slashing . | . . . . Piercing . | . . . . Highest Corruption . | . . . . Average Corruption . | . . . . Corruption Purged . | . . . . Corruption Blocked . | . . . . Overload Shots . | . . . . Overflow Damage 569 | . . 82 487 Projectiles . | . . . . Explosions . | . . . . Melee 569 | . . 82 487 Knockbacks 2 | . . . 2 Impact 2 | . . . 2 Kinetic . | . . . . Secondary . | . . . . Self-Inflicted Damage . | . . . . Shots . | . . . . Rammed . | . . . . Targets Rammed . | . . . . Kicked . | . . . . Crushed . | . . . . Highest Temperature . | . . . . Average Temperature . | . . . . Received Heat Transfer 135 | . . 21 114 Siege Activations . | . . . . Martial Activations . | . . . . Shielding Activations . | . . . . Robots Disrupted . | . . . . Combat Hostiles . | . . . . Robots Corrupted 11 | . . 2 9 Combat Hostiles 8 | . . 1 7 Parts Fried 16 | . . 5 11 Impact Corruptions 25 | . . 4 21 Robots Melted . | . . . . Combat Hostiles . | . . . . Parts Melted . | . . . . Heat Transferred . | . . . . Parts Sabotaged . | . . . . Parts Stolen . | . . . . Parts Stripped . | . . . . Power Chain Reactions . | . . . . Alert | -11 -10 -9 -9 ------- Run | Yrd Mat Mat Sto Maximum Alert Level 1 | . . . 1 Low Security (%) 71 | 100 100 100 54 Level 1 28 | . . . 45 Level 2 . | . . . . Level 3 . | . . . . Level 4 . | . . . . Level 5 . | . . . . High Security . | . . . . Max Security . | . . . . Peak Influence 321 | . 11 39 321 Initial 10 | . . . 10 Average 91 | . 2 15 141 Influence Increases 512 | . 19 63 430 Destroy 0b10 Robot/C 260 | . . 20 240 Destroy 0b10 Robot/NC 20 | . . 10 10 Destroy Leader 88 | . . 14 74 Successful Hack 54 | . 19 19 16 Disable Machine 45 | . . . 45 Partial Spotted 30 | . . . 30 Lose Combat Pursuer 15 | . . . 15 Influence Decreases 191 | . 18 38 135 Entered New Map 17 | . . 1 16 Time Decay 174 | . 18 37 119 Squads Dispatched . | . . . . Investigation . | . . . . Extermination . | . . . . Reinforcement . | . . . . Assault . | . . . . Garrison . | . . . . Intercept . | . . . . Searches Triggered . | . . . . Construction Impeded . | . . . . Haulers Reinforced . | . . . . Active Scanning Responses . | . . . . Cargo Convoy Interrupts . | . . . . Stealth | -11 -10 -9 -9 --------- Run | Yrd Mat Mat Sto Distress Signals 1 | . . . 1 Communications Jammed . | . . . . Distress Signals . | . . . . Times Spotted 18 | . . 3 15 Peak Tracking Total 7 | . . 1 7 Tactical Retreats 1 | . . . 1 Traps | -11 -10 -9 -9 ------- Run | Yrd Mat Mat Sto Traps Triggered . | . . . . Indirectly . | . . . . Trap Hack Attempts . | . . . . Triggered . | . . . . Disarmed . | . . . . Reprogrammed . | . . . . Reused . | . . . . Traps Extracted . | . . . . Installed . | . . . . Triggered . | . . . . Machines | -11 -10 -9 -9 ---------- Run | Yrd Mat Mat Sto Machines Disabled 3 | . . . 3 Max in Single Turn 1 | . . . 1 Garrison Access 1 | . . . 1 Machines Repaired . | . . . . Machines Dismantled . | . . . . Machines Sabotaged . | . . . . Overloaded Fab Kills . | . . . . Hacking | -11 -10 -9 -9 --------- Run | Yrd Mat Mat Sto Machines Accessed 13 | . 2 4 7 Terminals 12 | . 2 4 6 Fabricators . | . . . . Repair Stations . | . . . . Recycling Units . | . . . . Scanalyzers . | . . . . Garrison Access 1 | . . . 1 Total Hacks 64 | . 11 19 34 Successful 38 | . 7 12 19 Failed 26 | . 4 7 15 Catastrophic 3 | . . 2 1 Database Lockouts . | . . . . Manual 40 | . 6 16 18 Terminals 62 | . 11 19 32 Fabricators . | . . . . Repair Stations . | . . . . Recycling Units . | . . . . Scanalyzers . | . . . . Garrison Access 2 | . . . 2 Terminal Hacks 22 | . 4 7 11 Record 1 | . . 1 . Prototype ID Bank 1 | . . . 1 Open Door 1 | . . . 1 Level Access Points 1 | . . . 1 Branch Access Points 4 | . 1 2 1 Emergency Access Points 1 | . . . 1 Terminal Index 1 | . . 1 . Scanalyzer Index 1 | . . 1 . Locate Traps 1 | . . . 1 Dispatch Records 1 | . . . 1 Maintenance Status 1 | . . . 1 Hauler Manifests 2 | . 1 . 1 Registered Prototypes 1 | . . 1 . Zone Layout 5 | . 2 1 2 Fabricator Hacks . | . . . . Repair Station Hacks . | . . . . Recycling Unit Hacks . | . . . . Scanalyzer . | . . . . Garrison Access Hacks 1 | . . . 1 Seal Access 1 | . . . 1 Unauthorized Hacks 15 | . 3 5 7 Terminals 15 | . 3 5 7 Track 5 | . 1 1 3 Botnet 8 | . 2 3 3 Operators 2 | . . 1 1 Fabricators . | . . . . Repair Stations . | . . . . Recycling Units . | . . . . Scanalyzers . | . . . . Garrison Access . | . . . . Data Cores Recovered . | . . . . Used . | . . . . Hacking Detections 13 | . 2 4 7 Full Trace Events . | . . . . Feedback Events . | . . . . Feedback Blocked . | . . . . Robot Schematics Acquired . | . . . . Robots Built . | . . . . Authchips . | . . . . Time . | . . . . Total Robot Build Rating . | . . . . Part Schematics Acquired . | . . . . Parts Built . | . . . . Authchips . | . . . . Time . | . . . . Total Part Build Rating . | . . . . Part Studies Acquired . | . . . . Parts Repaired . | . . . . Time . | . . . . Parts Recycled . | . . . . Recycled Matter . | . . . . Retrieved Matter . | . . . . Retrieved Components . | . . . . Parts Scanalyzed . | . . . . Part Schematics Acquired . | . . . . Parts Damaged . | . . . . Bothacking | -11 -10 -9 -9 ------------ Run | Yrd Mat Mat Sto Used RIF Installer . | . . . . Robots Hacked . | . . . . Non-combat . | . . . . Combat . | . . . . Robot Hacks Applied . | . . . . Relay Couplers Released . | . . . . Fabnet Peak Effective % . | . . . . Robots Rewired . | . . . . Allies Hacked . | . . . . Hacks Repelled . | . . . . Allies | -11 -10 -9 -9 -------- Run | Yrd Mat Mat Sto Total Allies . | . . . . Largest Group . | . . . . Highest-Rated Group . | . . . . Highest-Rated Ally . | . . . . Total Orders . | . . . . Ally Attacks . | . . . . Total Damage . | . . . . Kills . | . . . . Allies Corrupted . | . . . . Allies Melted . | . . . . Intel | -11 -10 -9 -9 ------- Run | Yrd Mat Mat Sto Active Infowar (turns) . | . . . . Robot Analysis Total . | . . . . Derelict Logs Recovered . | . . . . Drone Launches . | . . . . Drone Recoveries . | . . . . Exploration | -11 -10 -9 -9 ------------- Run | Yrd Mat Mat Sto Turns Passed 403 | 12 56 84 251 Spaces Moved 585 | 24 109 137 315 Core 92 | 24 68 . . Treads . | . . . . Legs . | . . . . Wheels . | . . . . Hover . | . . . . Flight 493 | . 41 137 315 Fastest Speed 40 | 50 40 40 40 Average Speed 41 | 50 46 40 40 Slowest Speed 50 | 50 50 40 40 Overloaded Moves . | . . . . Propulsion Burnouts . | . . . . Robots Hopped 10 | . . . 10 Potential Cave-ins . | . . . . Cave-ins Triggered . | . . . . Exploration Rate (%) 28 | 3 24 18 68 Regions Visited 3 Branch Regions 1 Pre-discovered Areas . | . . . . Known Exits Taken 1 | . . 1 . Unknown Exits Taken 2 | 1 1 . . Scrap Searched . | . . . . Spaces Dug . | . . . . Terrain Destroyed . | . . . . Melee . | . . . . Projectile . | . . . . AOE . | . . . . Terrain Rammed . | . . . . Walls Destroyed . | . . . . Machines Disabled . | . . . . Actions | -11 -10 -9 -9 --------- Run | Yrd Mat Mat Sto Total 637 | 23 112 151 351 Wait 4 | . . 4 . Move 564 | 23 108 136 297 Hop 8 | . . . 8 Pick Up 1 | . 1 . . Fast Attach 5 | . 3 . 2 Attach . | . . . . Detach . | . . . . Swap 1 | . . . 1 Drop 1 | . . . 1 Fire . | . . . . Melee 43 | . . 7 36 Ram . | . . . . Kick . | . . . . Crush . | . . . . Escape Stasis . | . . . . Rewire . | . . . . Trap . | . . . . Miscellaneous 10 | . . 4 6 Route ------- -11/Scrapyard -10/Materials (discovered 2 exits: *Mat / Min) -9/Materials (discovered 4 exits: Min x2 / *Sto x2) -9/Storage (discovered 2 exits: Mat / Rec) History --------- Turn | Location | Event 5 | -11/Scrapyard | Discovered new exit (range 13) 13 | -11/Scrapyard | Entered Materials 20 | -10/Materials | Upgraded with Weapon slot (x1) 43 | -10/Materials | Identified exit to Mines 57 | -10/Materials | Discovered new exit (range 5) 69 | -10/Materials | Entered another Materials area 71 | -9/Materials | Reached level 2 93 | -9/Materials | Identified exit to Mines 93 | -9/Materials | Identified exit to Storage 153 | -9/Materials | Entered Storage 186 | -9/Storage | Identified exit to Materials 186 | -9/Storage | Identified exit to Recycling 238 | -9/Storage | Core integrity fell below 50% 244 | -9/Storage | Reached level 3 316 | -9/Storage | Build established: Gladiator 340 | -9/Storage | Destroyed 9 combat bots 344 | -9/Storage | Core integrity fell below 20% 402 | -9/Storage | Reached level 4 404 | -9/Storage | Destroyed by Y-45 Defender with Beam Rifle Last Messages --------------- 00388_ K-01 Serf destroyed. 00394_ Y-45 Defender suffers critical hit (Smash). 00394_ Destroyed Lgt. Treads. 00394_ Y-45 Defender system corrupted by crushing effect. 00397_ Maul follow-up attack on Y-45 Defender. 00397_ Y-45 Defender suffers critical hit (Smash). 00397_ Destroyed Hvy. Assault Rifle. 00397_ Y-45 Defender system corrupted by crushing effect. 00401_ Y-45 Defender suffers critical hit (Smash). 00401_ Destroyed Beam Rifle. 00401_ Y-45 Defender system corrupted by crushing effect. 00402_ Y-45 Defender system terminally corrupted. 00402_ Reached level 4. Map ----- +----------------------------------------------------+ | # ## ###???### ##?##??????????# # "" | | ?########## #???????# #??????????????# # | | ??????????#+#???????# #??????????????# ####### | | ????????? #???????# #??????????????#####?????? | | ??????? """#???????# #????????????????????????? | | ????? """#???????# #????????????????????????? | | ??? """#???????# #????????????????????????? | | ??## #???????# #####????????????????????? | | ???# """#???????# % #????????????????????? | | ???# """#???????# % #????????????????????? | | ???# ?????????????# = #????????????????????? | | ???#????????????????#*% #????????????????????? | | ????????????????????# ! #????????????????????? | | ????????????????????## ##???????"#???????????? | | ?????????????????????# #?#####" "###?????????? | | ?????????????????????# # ?????????? | | ??o??????????????????# # """"???????????? | | ?????????????????????# + ^^ """"???????????? | | ?????????????????????# #^ ^ """"???????????? | | ?????????????????????# # ?????????? | | ?????????????????????# #?########## #????????? | | ?????????????????????# #?????????????????????? | | ????????????????????## ##????????????????????? | | ???????????#####+#### #????????????????????? | | ???????? #????????????????????? | | ????????Y @ #????????????????????? | | ???????? +????????????????????? | | ?????????? ########## #????????????????????? | | ????????????????????#######????????????????????? | | ???????????????????????????????????????????????? | | ???????????????????????????????????????????????? | | ???????????????????????????????????????????????? | | ???????????????????????????????????????????????? | | ???????????????????????????????????????????????? | | ???????????????????????????????????????????????? | | ???????????????????????????????????????????????? | | ????????